fUSD/lending_fUSD_20250804
["ID","MTS","AMOUNT","RATE_DAILY","PERIOD"]
[377290743,1754321445618,-150.0,0.00048295,7]
[377290744,1754321445627,-150.0,0.00048298,7]
[377290745,1754321445636,-10000.0,0.00048299,120]
[377290746,1754321445646,-150.0,0.00048299,12]
[377290747,1754321445657,-188818.1405,0.000483,2]
[377290748,1754321445668,-150.0,0.00048318,7]
[377290749,1754321445677,-178.26043194,0.00048319,7]
[377290750,1754321445687,-1581.72519403,0.00048329,2]
[377290751,1754321445696,-150.0,0.00048333,7]
[377290752,1754321445707,-150.0,0.00048334,7]
[377290753,1754321445717,-1000.0,0.00048342,14]
[377290754,1754321445726,-150.0,0.00048347,7]
[377290755,1754321445735,-150.0,0.00048349,7]
[377290756,1754321445745,-1000.0,0.00048351,14]
[377290757,1754321445754,-247.0,0.00048356,90]
[377290758,1754321445764,-362.0,0.00048356,90]
[377290759,1754321445773,-150.0,0.00048371,7]
[377290761,1754321445783,-150.0,0.00048373,7]
[377290762,1754321445792,-150.0,0.00048376,7]
[377290763,1754321445802,-150.0,0.00048381,7]
[377290764,1754321445811,-150.0,0.00048381,7]
[377290765,1754321445822,-150.0,0.00048384,7]
[377290766,1754321445831,-300.0,0.00048386,7]
[377290767,1754321445841,-150.0,0.00048391,7]
[377290768,1754321445851,-194.06,0.00048392,14]
[377290770,1754321445861,-574.0,0.00048393,7]
[377290771,1754321445871,-10000.0,0.00048395,120]
[377290772,1754321445880,-150.0,0.00048397,7]
[377290773,1754321445890,-150.0,0.00048398,12]
[377290774,1754321445900,-1667.89,0.00048399,120]
[377290775,1754321445911,-2234.2892,0.000484,10]
[377290776,1754321445920,-150.0,0.000484,120]
[377290777,1754321445931,-150.0,0.000484,2]
[377290778,1754321445940,-154.26748793,0.000484,120]
[377290779,1754321445950,-3060.64039976,0.000484,15]
[377290781,1754321445961,-150.0,0.00048417,7]
[377290782,1754321445971,-150.0,0.00048431,7]
[377290783,1754321445982,-150.0,0.00048434,7]
[377290784,1754321445992,-300.0,0.00048437,7]
[377290785,1754321446002,-150.0,0.00048441,7]
[377290786,1754321446012,-651.71034865,0.00048452,120]
[377290787,1754321446022,-150.0,0.00048457,7]
[377290788,1754321446031,-389.47037736,0.00048459,14]
[377290789,1754321446041,-150.0,0.00048469,7]
[377290790,1754321446051,-574.76087479,0.0004847,3]
[377290791,1754321446060,-1403.17503474,0.0004847,3]
[377290792,1754321446070,-150.0,0.00048473,3]
[377290793,1754321446080,-500.0,0.00048473,10]
[377290794,1754321446090,-1000.0,0.00048473,14]
[377290795,1754321446100,-150.0,0.00048477,7]
[377290796,1754321446110,-175.3,0.00048478,120]
[377290797,1754321446119,-172.1699294,0.0004848,2]
[377290798,1754321446129,-235.530611,0.0004848,2]
[377290799,1754321446138,-6045.61998627,0.0004848,120]
[377290800,1754321446148,-584.32087014,0.00048482,2]
[377290801,1754321446158,-150.0,0.00048486,7]
[377290802,1754321446167,-150.0,0.00048487,7]
[377290803,1754321446176,-1000.0,0.00048487,14]
[377290804,1754321446187,-151.0,0.00048488,4]
[377290805,1754321446197,-151.0,0.00048488,4]
[377290806,1754321446206,-151.0,0.00048488,4]
[377290807,1754321446216,-151.0,0.00048488,4]
[377290808,1754321446226,-151.0,0.00048488,4]
[377290809,1754321446236,-151.0,0.00048488,4]
[377290810,1754321446246,-1500.0,0.00048488,30]
[377290811,1754321446256,-200.0,0.00048488,4]
[377290812,1754321446265,-270.04378316,0.00048488,4]
[377290813,1754321446275,-200.0,0.00048488,4]
[377290814,1754321446285,-600.0,0.00048488,4]
[377290815,1754321446294,-600.0,0.00048488,4]
[377290816,1754321446304,-500.0,0.00048488,4]
[377290817,1754321446313,-500.0,0.00048488,4]
[377290818,1754321446322,-500.0,0.00048488,4]
[377290819,1754321446332,-500.0,0.00048488,4]
[377290820,1754321446342,-500.0,0.00048488,4]
[377290821,1754321446351,-500.0,0.00048488,4]
[377290822,1754321446360,-500.0,0.00048488,4]
[377290823,1754321446370,-500.0,0.00048488,4]
[377290824,1754321446380,-500.0,0.00048488,4]
[377290825,1754321446390,-500.0,0.00048488,4]
[377290826,1754321446400,-500.0,0.00048488,4]
[377290827,1754321446410,-500.0,0.00048488,4]
[377290828,1754321446420,-500.0,0.00048488,4]
[377290829,1754321446430,-500.0,0.00048488,4]
[377290830,1754321446440,-500.0,0.00048488,4]
[377290832,1754321446450,-500.0,0.00048488,4]
[377290834,1754321446461,-500.0,0.00048488,4]
[377290836,1754321446471,-500.0,0.00048488,4]
[377290838,1754321446480,-500.0,0.00048488,4]
[377290840,1754321446491,-500.0,0.00048488,4]
[377290842,1754321446500,-500.0,0.00048488,4]
[377290844,1754321446510,-500.0,0.00048488,4]
[377290846,1754321446520,-500.0,0.00048488,4]
[377290848,1754321446530,-500.0,0.00048488,4]
[377290850,1754321446540,-500.0,0.00048488,4]
[377290852,1754321446551,-500.0,0.00048488,4]
[377290854,1754321446562,-500.0,0.00048488,4]
[377290856,1754321446572,-500.0,0.00048488,4]
[377290857,1754321446587,-500.0,0.00048488,4]
[377290858,1754321446597,-500.0,0.00048488,4]
[377290859,1754321446608,-500.0,0.00048488,4]
[377290860,1754321446618,-500.0,0.00048488,4]
[377290861,1754321446629,-500.0,0.00048488,4]
[377290862,1754321446639,-500.0,0.00048488,4]
[377290863,1754321446649,-500.0,0.00048488,4]
[377290864,1754321446659,-200.0,0.00048489,7]
[377290865,1754321446669,-200.0,0.00048489,7]
[377290866,1754321446679,-199.0,0.00048489,30]
[377290867,1754321446689,-200.0,0.00048489,7]
[377290868,1754321446699,-158.0,0.00048489,14]
[377290869,1754321446709,-277.62950492,0.00048489,14]
[377290870,1754321446719,-159.07185268,0.00048489,14]
[377290871,1754321446730,-159.93465854,0.00048489,14]
[377290872,1754321446742,-202.8913826,0.00048489,14]
[377290873,1754321446754,-1213.0,0.00048489,14]
[377290874,1754321446764,-1213.0,0.00048489,14]
[377290875,1754321446774,-1213.0,0.00048489,14]
[377290876,1754321446784,-153.0,0.00048489,14]
[377290877,1754321446794,-1213.0,0.00048489,14]
[377290878,1754321446804,-1213.0,0.00048489,14]
[377290879,1754321446816,-1213.0,0.00048489,14]
[377290880,1754321446827,-153.0,0.00048489,14]
[377290881,1754321446837,-1213.0,0.00048489,14]
[377290882,1754321446847,-153.0,0.00048489,14]
[377290883,1754321446857,-1213.0,0.00048489,14]
[377290884,1754321446867,-153.0,0.00048489,14]
[377290885,1754321446878,-1213.0,0.00048489,14]
[377290886,1754321446889,-153.0,0.00048489,14]
[377290887,1754321446900,-1213.0,0.00048489,14]
[377290888,1754321446910,-153.0,0.00048489,14]
[377290889,1754321446921,-155.0,0.00048489,14]
[377290890,1754321446932,-1213.0,0.00048489,14]
[377290891,1754321446942,-153.0,0.00048489,14]
[377290892,1754321446952,-155.0,0.00048489,14]
[377290893,1754321446964,-1213.0,0.00048489,14]
[377290894,1754321446975,-155.0,0.00048489,14]
[377290895,1754321446986,-168.49778976,0.00048489,14]
[377290896,1754321446996,-1213.0,0.00048489,14]
[377290897,1754321447006,-1229.53894954,0.00048489,14]
[377290898,1754321447016,-153.0,0.00048489,14]
[377290899,1754321447027,-153.0,0.00048489,14]
[377290900,1754321447037,-153.0,0.00048489,14]
[377290901,1754321447047,-192.0,0.0004849,76]
[377290902,1754321447057,-1730.34366863,0.0004849,2]
[377290903,1754321447067,-150.0,0.00048493,7]
[377290904,1754321447077,-10000.0,0.00048495,120]
[377290905,1754321447087,-151.0,0.00048496,14]
[377290906,1754321447097,-151.0,0.00048496,14]
[377290907,1754321447108,-151.0,0.00048496,14]
[377290908,1754321447118,-151.0,0.00048496,14]
[377290909,1754321447128,-151.0,0.00048496,14]
[377290910,1754321447138,-151.0,0.00048496,14]
[377290911,1754321447148,-151.0,0.00048496,14]
[377290912,1754321447158,-151.0,0.00048496,14]
[377290913,1754321447168,-151.0,0.00048496,14]
[377290914,1754321447179,-151.0,0.00048496,14]
[377290915,1754321447188,-151.0,0.00048496,14]
[377290916,1754321447199,-151.0,0.00048496,14]
[377290917,1754321447209,-151.0,0.00048496,14]
[377290918,1754321447219,-151.0,0.00048496,14]
[377290919,1754321447229,-151.0,0.00048496,14]
[377290920,1754321447240,-151.0,0.00048496,14]
[377290921,1754321447250,-151.0,0.00048496,14]
[377290922,1754321447260,-151.0,0.00048496,14]
[377290923,1754321447270,-151.0,0.00048496,14]
[377290924,1754321447280,-151.0,0.00048496,14]
[377290925,1754321447290,-151.0,0.00048496,14]
[377290926,1754321447301,-151.0,0.00048496,14]
[377290927,1754321447311,-151.0,0.00048496,14]
[377290928,1754321447321,-151.0,0.00048496,14]
[377290929,1754321447332,-151.0,0.00048496,14]
[377290930,1754321447342,-151.0,0.00048496,14]
[377290931,1754321447353,-151.0,0.00048496,14]
[377290932,1754321447363,-151.0,0.00048496,14]
[377290933,1754321447373,-151.0,0.00048496,14]
[377290934,1754321447383,-151.0,0.00048496,14]
[377290935,1754321447393,-151.0,0.00048496,14]
[377290936,1754321447403,-151.0,0.00048496,14]
[377290937,1754321447413,-151.0,0.00048496,14]
[377290938,1754321447423,-235.65493104,0.00048496,14]
[377290939,1754321447433,-303.42652598,0.00048498,120]
[377290940,1754321447444,-600.0,0.00048499,18]
[377290941,1754321447454,-600.0,0.00048499,18]
[377290942,1754321447465,-600.0,0.00048499,18]
[377290943,1754321447475,-600.0,0.00048499,18]
[377290944,1754321447485,-600.0,0.00048499,18]
[377290945,1754321447495,-600.0,0.00048499,18]
[377290946,1754321447507,-600.0,0.00048499,18]
[377290947,1754321447518,-600.0,0.00048499,18]
[377290948,1754321447530,-600.0,0.00048499,18]
[377290949,1754321447540,-600.0,0.00048499,18]
[377290950,1754321447550,-600.0,0.00048499,38]
[377290951,1754321447560,-175.0,0.00048499,120]
[377290952,1754321447570,-153.0,0.00048499,14]
[377290953,1754321447585,-153.0,0.00048499,14]
[377290954,1754321447595,-153.0,0.00048499,14]
[377290955,1754321447605,-153.0,0.00048499,14]
[377290956,1754321447615,-153.0,0.00048499,14]
[377290957,1754321447625,-153.0,0.00048499,14]
[377290958,1754321447636,-153.0,0.00048499,14]
[377290959,1754321447646,-153.0,0.00048499,14]
[377290960,1754321447658,-153.0,0.00048499,14]
[377290961,1754321447668,-168.71201184,0.00048499,14]
[377290962,1754321447678,-151.0,0.00048499,14]
[377290963,1754321447688,-151.0,0.00048499,14]
[377290964,1754321447698,-151.0,0.00048499,14]
[377290965,1754321447709,-151.0,0.00048499,14]
[377290966,1754321447719,-158.0,0.00048499,14]
[377290967,1754321447729,-158.0,0.00048499,14]
[377290968,1754321447739,-151.0,0.00048499,14]
[377290969,1754321447750,-158.0,0.00048499,14]
[377290970,1754321447760,-158.0,0.00048499,14]
[377290971,1754321447770,-158.0,0.00048499,14]
[377290972,1754321447780,-158.0,0.00048499,14]
[377290973,1754321447790,-151.0,0.00048499,14]
[377290974,1754321447801,-151.0,0.00048499,14]
[377290975,1754321447810,-1213.0,0.00048499,14]
[377290976,1754321447821,-1213.0,0.00048499,14]
[377290977,1754321447831,-1213.0,0.00048499,14]
[377290978,1754321447841,-1213.0,0.00048499,14]
[377290979,1754321447852,-1213.0,0.00048499,14]
[377290980,1754321447862,-1213.0,0.00048499,14]
[377290981,1754321447872,-1213.0,0.00048499,14]
[377290982,1754321447882,-153.0,0.00048499,14]
[377290983,1754321447892,-153.0,0.00048499,14]
[377290984,1754321447902,-153.0,0.00048499,14]
[377290985,1754321447912,-150.0,0.00048499,120]
[377290986,1754321447922,-150.0,0.00048499,120]
[377290987,1754321447932,-230.4,0.00048499,2]
[377290988,1754321447942,-999.0,0.00048499,120]
[377290989,1754321447952,-1000.0,0.00048499,2]
[377290990,1754321447962,-1000.0,0.00048499,2]
[377290991,1754321447972,-525.95605987,0.00048499,2]
[377290992,1754321447982,-150.0,0.00048499,12]
[377290993,1754321447992,-150.0,0.00048499,12]
[377290994,1754321448003,-150.0,0.00048499,12]
[377290995,1754321448013,-150.0,0.00048499,12]
[377290996,1754321448024,-2122584.53579198,0.000485,120]
[377290997,1754321448034,-363.34,0.000485,14]
[377290998,1754321448044,-151.0,0.000485,14]
[377290999,1754321448054,-151.0,0.000485,14]
[377291000,1754321448065,-255.523906,0.000485,14]
[377291001,1754321448075,-151.0,0.000485,14]
[377291002,1754321448085,-151.0,0.000485,14]
[377291003,1754321448096,-151.0,0.000485,14]
[377291004,1754321448106,-151.0,0.000485,14]
[377291005,1754321448117,-500.0,0.000485,120]
[377291006,1754321448127,-593.72306,0.000485,14]
[377291007,1754321448138,-593.72306,0.000485,14]
[377291008,1754321448148,-151.717577,0.000485,14]
[377291009,1754321448159,-151.0,0.000485,14]
[377291011,1754321448169,-151.0,0.000485,14]
[377291012,1754321448179,-151.0,0.000485,14]
[377291013,1754321448189,-469.300013,0.000485,14]
[377291014,1754321448200,-469.300013,0.000485,14]
[377291015,1754321448210,-151.0,0.000485,14]
[377291016,1754321448220,-151.0,0.000485,14]
[377291017,1754321448231,-152.537888,0.000485,14]
[377291018,1754321448241,-151.439782,0.000485,14]
[377291019,1754321448252,-151.0,0.000485,14]
[377291020,1754321448263,-186.324008,0.000485,14]
[377291021,1754321448274,-186.324008,0.000485,14]
[377291022,1754321448284,-564.731827,0.000485,14]
[377291023,1754321448295,-564.731827,0.000485,14]
[377291024,1754321448306,-151.0,0.000485,14]
[377291025,1754321448317,-158.460527,0.000485,14]
[377291026,1754321448328,-233.770707,0.000485,14]
[377291027,1754321448338,-233.770707,0.000485,14]
[377291028,1754321448349,-153.024142,0.000485,14]
[377291029,1754321448360,-151.0,0.000485,14]
[377291030,1754321448371,-151.0,0.000485,14]
[377291031,1754321448382,-151.0,0.000485,14]
[377291032,1754321448392,-151.0,0.000485,14]
[377291033,1754321448403,-361.116668,0.000485,14]
[377291034,1754321448413,-361.116668,0.000485,14]
[377291035,1754321448424,-151.0,0.000485,14]
[377291036,1754321448434,-151.0,0.000485,14]
[377291037,1754321448445,-535.101811,0.000485,14]
[377291038,1754321448455,-535.101811,0.000485,14]
[377291039,1754321448466,-151.0,0.000485,14]
[377291040,1754321448476,-151.0,0.000485,14]
[377291041,1754321448487,-151.0,0.000485,14]
[377291042,1754321448497,-151.0,0.000485,14]
[377291043,1754321448508,-151.0,0.000485,14]
[377291044,1754321448519,-151.0,0.000485,14]
[377291045,1754321448530,-151.0,0.000485,14]
[377291046,1754321448541,-151.0,0.000485,14]
[377291047,1754321448551,-151.0,0.000485,14]
[377291048,1754321448562,-151.0,0.000485,14]
[377291049,1754321448819,-151.228834,0.000485,14]
[377291050,1754321448829,-151.228834,0.000485,14]
[377291051,1754321448839,-27288.97432138,0.000485,30]
[377291052,1754321448850,-237.939838,0.000485,14]
[377291053,1754321448860,-237.939838,0.000485,14]
[377291054,1754321448871,-640.946003,0.000485,14]
[377291055,1754321448883,-640.946003,0.000485,14]
[377291056,1754321448894,-237.041147,0.000485,14]
[377291057,1754321448904,-237.041147,0.000485,14]
[377291058,1754321448914,-444.38883,0.000485,14]
[377291059,1754321448924,-444.38883,0.000485,14]
[377291060,1754321448934,-151.0,0.000485,14]
[377291061,1754321448944,-151.0,0.000485,14]
[377291062,1754321448954,-151.0,0.000485,14]
[377291063,1754321448964,-151.0,0.000485,14]
[377291064,1754321448974,-151.0,0.000485,14]
[377291065,1754321448984,-151.0,0.000485,14]
[377291066,1754321448994,-958.032555,0.000485,14]
[377291067,1754321449004,-958.032555,0.000485,14]
[377291068,1754321449014,-880.737776,0.000485,14]
[377291069,1754321449024,-880.737776,0.000485,14]
[377291070,1754321449033,-151.0,0.000485,14]
[377291071,1754321449043,-153.877785,0.000485,14]
[377291072,1754321449053,-191.294542,0.000485,14]
[377291073,1754321449063,-403.138226,0.000485,14]
[377291074,1754321449072,-403.138226,0.000485,14]
[377291075,1754321449082,-191.294542,0.000485,14]
[377291076,1754321449093,-151.0,0.000485,14]
[377291077,1754321449103,-1753.367064,0.000485,14]
[377291078,1754321449112,-1753.367064,0.000485,14]
[377291079,1754321449123,-151.0,0.000485,14]
[377291080,1754321449133,-151.0,0.000485,14]
[377291081,1754321449143,-154.662229,0.000485,14]
[377291082,1754321449152,-737.425475,0.000485,14]
[377291083,1754321449162,-737.425475,0.000485,14]
[377291084,1754321449171,-487.696528,0.000485,14]
[377291085,1754321449182,-737.425475,0.000485,14]
[377291086,1754321449192,-737.425475,0.000485,14]
[377291087,1754321449201,-487.696528,0.000485,14]
[377291088,1754321449211,-151.0,0.000485,14]
[377291089,1754321449221,-151.0,0.000485,14]
[377291090,1754321449230,-500.0,0.000485,120]
[377291091,1754321449239,-500.0,0.000485,120]
[377291092,1754321449248,-500.0,0.000485,120]
[377291093,1754321449257,-500.0,0.000485,120]
[377291094,1754321449267,-500.0,0.000485,120]
[377291095,1754321449276,-305.77,0.000485,120]
[377291096,1754321449285,-1010.0,0.000485,7]
[377291097,1754321449294,-245.186586,0.000485,14]
[377291098,1754321449304,-245.186586,0.000485,14]
[377291099,1754321449314,-189.934895,0.000485,14]
[377291100,1754321449327,-189.934895,0.000485,14]
[377291101,1754321449336,-280.723601,0.000485,14]
[377291102,1754321449346,-280.723601,0.000485,14]
[377291103,1754321449356,-280.723601,0.000485,14]
[377291104,1754321449365,-280.723601,0.000485,14]
[377291105,1754321449375,-191.088733,0.000485,14]
[377291106,1754321449385,-191.088733,0.000485,14]
[377291107,1754321449395,-191.088733,0.000485,14]
[377291108,1754321449405,-191.088733,0.000485,14]
[377291109,1754321449414,-348.694145,0.000485,14]
[377291110,1754321449424,-348.694145,0.000485,14]
[377291111,1754321449434,-151.0,0.000485,14]
[377291112,1754321449444,-158.466436,0.000485,14]
[377291113,1754321449454,-151.0,0.000485,14]
[377291114,1754321449464,-151.0,0.000485,14]
[377291115,1754321449474,-151.0,0.000485,14]
[377291116,1754321449484,-151.0,0.000485,14]
[377291117,1754321449495,-151.0,0.000485,14]
[377291118,1754321449505,-151.0,0.000485,14]
[377291119,1754321449515,-151.0,0.000485,14]
[377291120,1754321449524,-151.0,0.000485,14]
[377291121,1754321449535,-151.0,0.000485,14]
[377291122,1754321449544,-435.792261,0.000485,14]
[377291123,1754321449554,-435.792261,0.000485,14]
[377291124,1754321449563,-435.792261,0.000485,14]
[377291125,1754321449572,-435.792261,0.000485,14]
[377291126,1754321449587,-151.0,0.000485,14]
[377291127,1754321449596,-151.0,0.000485,14]
[377291128,1754321449606,-1270.795198,0.000485,14]
[377291129,1754321449615,-151.0,0.000485,14]
[377291130,1754321449626,-1270.795198,0.000485,14]
[377291131,1754321449636,-173.358102,0.000485,14]
[377291132,1754321449645,-173.358102,0.000485,14]
[377291133,1754321449655,-170.098092,0.000485,14]
[377291134,1754321449664,-170.098092,0.000485,14]
[377291135,1754321449675,-170.098092,0.000485,14]
[377291136,1754321449684,-170.098092,0.000485,14]
[377291137,1754321449694,-1268.34653317,0.00048503,2]
[377291138,1754321449704,-151.0,0.00048515,14]
[377291139,1754321449713,-151.0,0.00048515,14]
[377291140,1754321449723,-151.0,0.00048515,14]
[377291141,1754321449733,-151.0,0.00048515,14]
[377291142,1754321449742,-151.0,0.00048515,14]
[377291143,1754321449752,-173.358102,0.00048515,14]
[377291144,1754321449761,-173.358102,0.00048515,14]
[377291145,1754321449771,-869.39344972,0.00048567,32]
[377291146,1754321449780,-285.49,0.00048577,2]
[377291147,1754321449790,-510.0,0.000486,30]
[377291148,1754321449799,-4423.77999999,0.00048664,120]
[377291149,1754321449810,-1415.09737171,0.00048666,2]
[377291150,1754321449820,-350.0,0.00048668,10]
[377291151,1754321449829,-1667.89,0.00048673,120]
[377291152,1754321449839,-1500.0,0.0004869,46]
[377291153,1754321449849,-304.05,0.00048697,120]
[377291154,1754321449858,-151.0,0.000487,14]
[377291155,1754321449868,-151.0,0.000487,14]
[377291156,1754321449877,-248.750718,0.000487,14]
[377291157,1754321449886,-151.0,0.000487,14]
[377291158,1754321449897,-151.0,0.000487,14]
[377291159,1754321449914,-151.0,0.000487,14]
[377291160,1754321449936,-151.0,0.000487,14]
[377291161,1754321449946,-151.0,0.000487,14]
[377291162,1754321449956,-394.0,0.0004877,30]
[377291163,1754321449966,-547.69037182,0.00048774,120]
[377291164,1754321449976,-888.111006,0.000488,30]
[377291165,1754321449987,-379.0,0.000488,30]
[377291166,1754321449997,-775.0,0.000488,30]
[377291167,1754321450006,-239.0,0.000488,30]
[377291168,1754321450016,-1561.84821026,0.00048828,2]
[377291169,1754321450026,-888.0,0.00048866,15]
[377291170,1754321450036,-1060.0,0.0004887,2]
[377291171,1754321450045,-238.57624203,0.0004888,120]
[377291172,1754321450055,-10000.0,0.00048895,120]
[377291173,1754321450065,-1203.92243298,0.000489,120]
[377291174,1754321450075,-363.34,0.000489,14]
[377291175,1754321450085,-152.0,0.000489,120]
[377291176,1754321450095,-1667.89,0.00048947,120]
[377291177,1754321450105,-150.5,0.0004896,120]
[377291178,1754321450114,-888.0,0.00048962,14]
[377291179,1754321450124,-150.5,0.0004897,120]
[377291180,1754321450134,-500.54256416,0.00048973,10]
[377291181,1754321450144,-200.0,0.00048974,7]
[377291182,1754321450154,-200.0,0.00048974,7]
[377291183,1754321450163,-509.0,0.00048977,15]
[377291184,1754321450172,-150.5,0.0004898,120]
[377291185,1754321450182,-1708.59904881,0.0004899,2]
[377291186,1754321450191,-150.0,0.00048999,12]
[377291187,1754321450200,-188.19425651,0.00048999,12]
[377291188,1754321450210,-452.0,0.00049,60]
[377291189,1754321450219,-50000.0,0.00049,49]
[377291190,1754321450229,-50000.0,0.00049,59]
[377291191,1754321450239,-937041.792,0.00049,120]
[377291192,1754321450249,-500.0,0.00049,120]
[377291193,1754321450258,-1000.0,0.00049,120]
[377291194,1754321450269,-771.72192648,0.00049,30]
[377291195,1754321450279,-776.55,0.00049,120]
[377291196,1754321450288,-151.0,0.00049,14]
[377291197,1754321450298,-151.0,0.00049,14]
[377291198,1754321450308,-151.0,0.00049,14]
[377291199,1754321450317,-154.786427,0.00049,14]
[377291200,1754321450327,-151.0,0.00049,14]
[377291201,1754321450336,-151.0,0.00049,14]
[377291202,1754321450346,-593.72306,0.00049,14]
[377291203,1754321450356,-593.723051,0.00049,14]
[377291204,1754321450365,-151.0,0.00049,14]
[377291205,1754321450374,-900.0,0.00049,50]
[377291206,1754321450384,-151.0,0.00049,14]
[377291207,1754321450393,-434.986049,0.00049,14]
[377291208,1754321450403,-434.986049,0.00049,14]
[377291209,1754321450412,-151.0,0.00049,14]
[377291210,1754321450423,-151.0,0.00049,14]
[377291211,1754321450438,-151.0,0.00049,14]
[377291212,1754321450447,-152.169731,0.00049,14]
[377291213,1754321450457,-151.0,0.00049,14]
[377291214,1754321450468,-151.0,0.00049,14]
[377291215,1754321450488,-151.0,0.00049,14]
[377291216,1754321450507,-151.0,0.00049,14]
[377291217,1754321450527,-249.425049,0.00049,14]
[377291218,1754321450547,-469.300013,0.00049,14]
[377291219,1754321450562,-469.300013,0.00049,14]
[377291220,1754321450584,-469.300013,0.00049,14]
[377291221,1754321450603,-469.300013,0.00049,14]
[377291222,1754321450627,-151.0,0.00049,14]
[377291223,1754321450646,-151.0,0.00049,14]
[377291224,1754321450667,-151.0,0.00049,14]
[377291225,1754321450686,-151.0,0.00049,14]
[377291226,1754321450702,-181.274854,0.00049,14]
[377291227,1754321450721,-181.274854,0.00049,14]
[377291228,1754321450737,-193.0,0.00049,14]
[377291229,1754321450759,-186.324008,0.00049,14]
[377291230,1754321450774,-186.324008,0.00049,14]
[377291231,1754321450789,-186.324008,0.00049,14]
[377291232,1754321450805,-186.324008,0.00049,14]
[377291233,1754321450822,-564.731827,0.00049,14]
[377291234,1754321450838,-564.731827,0.00049,14]
[377291235,1754321450855,-564.731827,0.00049,14]
[377291236,1754321450871,-564.731827,0.00049,14]
[377291237,1754321450896,-151.74431,0.00049,14]
[377291238,1754321450913,-151.0,0.00049,14]
[377291239,1754321450929,-271.608149,0.00049,14]
[377291240,1754321450945,-151.0,0.00049,14]
[377291241,1754321450960,-151.0,0.00049,14]
[377291242,1754321450975,-151.0,0.00049,14]
[377291243,1754321450992,-151.0,0.00049,14]
[377291244,1754321451009,-151.0,0.00049,14]
[377291245,1754321451026,-151.0,0.00049,14]
[377291246,1754321451041,-151.0,0.00049,14]
[377291247,1754321451056,-151.0,0.00049,14]
[377291248,1754321451072,-151.0,0.00049,14]
[377291249,1754321451087,-151.0,0.00049,14]
[377291250,1754321451103,-151.0,0.00049,14]
[377291251,1754321451120,-151.0,0.00049,14]
[377291252,1754321451135,-151.0,0.00049,14]
[377291253,1754321451152,-151.0,0.00049,14]
[377291254,1754321451170,-151.0,0.00049,14]
[377291255,1754321451186,-151.0,0.00049,14]
[377291256,1754321451202,-151.0,0.00049,14]
[377291257,1754321451219,-151.0,0.00049,14]
[377291258,1754321451234,-151.0,0.00049,14]
[377291259,1754321451250,-233.770707,0.00049,14]